[Event "Late-Titled-Tuesday-Blitz-March-19-2024"]
[Site "Chess.com"]
[Date "2024.03.19"]
[Round "2"]
[White "Stanbad1"]
[Black "mbojan"]
[Result "0-1"]
[WhiteElo "2576"]
[BlackElo "2793"]
[TimeControl "180+1"]
[EndTime "14:19:21 PDT"]
[Termination "mbojan won by resignation"]

1. d4 {[%clk 0:03:00.9]} 1... Nf6 {[%clk 0:03:00.2]} 2. Nc3 {[%clk 0:03:00.2]}
2... d5 {[%clk 0:02:59.8]} 3. Bf4 {[%clk 0:03:00.8]} 3... c5 {[%clk 0:03:00.2]}
4. e4 {[%clk 0:03:00.8]} 4... Nxe4 {[%clk 0:03:00.3]} 5. Nxe4 {[%clk 0:03:00.8]}
5... dxe4 {[%clk 0:03:00.6]} 6. dxc5 {[%clk 0:03:01.7]} 6... Qa5+ {[%clk
0:02:53.7]} 7. c3 {[%clk 0:03:01.8]} 7... Qxc5 {[%clk 0:02:54.1]} 8. Qa4+ {[%clk
0:03:01.7]} 8... Nc6 {[%clk 0:02:54.4]} 9. Qxe4 {[%clk 0:03:01.2]} 9... g6
{[%clk 0:02:52]} 10. Nf3 {[%clk 0:03:01.3]} 10... Bg7 {[%clk 0:02:48.8]} 11. Rd1
{[%clk 0:03:01.4]} 11... O-O {[%clk 0:02:43.3]} 12. Be3 {[%clk 0:03:01.4]} 12...
Qf5 {[%clk 0:02:32.3]} 13. Bd3 {[%clk 0:02:57.1]} 13... Rd8 {[%clk 0:02:20.6]}
14. Qxf5 {[%clk 0:02:55.7]} 14... Bxf5 {[%clk 0:02:19.6]} 15. Bxf5 {[%clk
0:02:55.6]} 15... gxf5 {[%clk 0:02:18.8]} 16. Ke2 {[%clk 0:02:55.2]} 16... e6
{[%clk 0:02:09.4]} 17. Rxd8+ {[%clk 0:02:53.9]} 17... Rxd8 {[%clk 0:02:09.2]}
18. Rd1 {[%clk 0:02:54.4]} 18... Rxd1 {[%clk 0:02:07.9]} 19. Kxd1 {[%clk
0:02:55.3]} 19... Kf8 {[%clk 0:02:00]} 20. Kc2 {[%clk 0:02:54.4]} 20... Ke7
{[%clk 0:01:58]} 21. Kd3 {[%clk 0:02:54.7]} 21... a6 {[%clk 0:01:57.8]} 22. Bc5+
{[%clk 0:02:53.4]} 22... Ke8 {[%clk 0:01:56.6]} 23. Be3 {[%clk 0:02:48.8]} 23...
Kd7 {[%clk 0:01:50.4]} 24. g3 {[%clk 0:02:46.5]} 24... h5 {[%clk 0:01:44.9]} 25.
Ne1 {[%clk 0:02:44.9]} 25... e5 {[%clk 0:01:44.2]} 26. Ng2 {[%clk 0:02:44.2]}
26... Ke6 {[%clk 0:01:43.8]} 27. f4 {[%clk 0:02:39.2]} 27... f6 {[%clk
0:01:39.9]} 28. Kc4 {[%clk 0:02:38.8]} 28... Bf8 {[%clk 0:01:37.1]} 29. a4
{[%clk 0:02:37]} 29... Na5+ {[%clk 0:01:23.7]} 30. Kd3 {[%clk 0:02:32]} 30... b5
{[%clk 0:01:07.8]} 31. axb5 {[%clk 0:02:28.8]} 31... axb5 {[%clk 0:01:08.7]} 32.
b4 {[%clk 0:02:22.4]} 32... Nc4 {[%clk 0:01:04.8]} 33. Bf2 {[%clk 0:02:21]}
33... Bd6 {[%clk 0:01:04.3]} 34. Be3 {[%clk 0:02:13.4]} 34... Bc7 {[%clk
0:00:51.5]} 35. Bc1 {[%clk 0:02:11.4]} 35... Bb8 {[%clk 0:00:49]} 36. Be3 {[%clk
0:02:09.7]} 36... Bd6 {[%clk 0:00:49.3]} 37. Bc1 {[%clk 0:02:09.4]} 37... Nb6
{[%clk 0:00:49.8]} 38. Be3 {[%clk 0:02:04.5]} 38... Nd5 {[%clk 0:00:50]} 39. Bd2
{[%clk 0:02:04.6]} 39... Bc7 {[%clk 0:00:50.6]} 40. Ne3 {[%clk 0:01:57.2]} 40...
Bb6 {[%clk 0:00:25]} 41. Nf1 {[%clk 0:01:05.5]} 41... Bg1 {[%clk 0:00:23.3]} 42.
fxe5 {[%clk 0:01:03.9]} 42... fxe5 {[%clk 0:00:23.4]} 43. Be1 {[%clk 0:01:00]}
43... e4+ {[%clk 0:00:22.1]} 44. Ke2 {[%clk 0:00:59.6]} 44... Ke5 {[%clk
0:00:21.4]} 45. Bd2 {[%clk 0:00:58.6]} 45... h4 {[%clk 0:00:07]} 46. Be1 {[%clk
0:00:50.3]} 46... hxg3 {[%clk 0:00:03]} 47. hxg3 {[%clk 0:00:51.2]} 47... Bb6
{[%clk 0:00:03.4]} 48. Bd2 {[%clk 0:00:50.7]} 48... Nf6 {[%clk 0:00:02.1]} 49.
Bf4+ {[%clk 0:00:49.9]} 49... Ke6 {[%clk 0:00:02.7]} 50. Bd2 {[%clk 0:00:40.3]}
50... Nd5 {[%clk 0:00:02.9]} 51. Be1 {[%clk 0:00:38]} 51... Bc7 {[%clk
0:00:03.5]} 52. Ne3 {[%clk 0:00:37.4]} 52... Nxe3 {[%clk 0:00:01.8]} 53. Kxe3
{[%clk 0:00:37.5]} 53... Ke5 {[%clk 0:00:02.5]} 54. Bd2 {[%clk 0:00:35.5]} 54...
Bb6+ {[%clk 0:00:02.6]} 55. Ke2 {[%clk 0:00:35.5]} 55... Kd5 {[%clk 0:00:03.5]}
56. Bf4 {[%clk 0:00:33.4]} 56... Kc4 {[%clk 0:00:03.7]} 57. Kd2 {[%clk
0:00:33.9]} 57... Bd8 {[%clk 0:00:03.2]} 58. Be5 {[%clk 0:00:33.4]} 58... Bg5+
{[%clk 0:00:03.5]} 59. Ke2 {[%clk 0:00:32.8]} 59... Bc1 {[%clk 0:00:03.7]} 60.
Kd1 {[%clk 0:00:32]} 60... Be3 {[%clk 0:00:04]} 61. Ke2 {[%clk 0:00:32.1]} 61...
Bg1 {[%clk 0:00:04.8]} 62. Bf6 {[%clk 0:00:30.6]} 62... Bb6 {[%clk 0:00:05.1]}
63. Be5 {[%clk 0:00:23.1]} 63... Kd5 {[%clk 0:00:05.5]} 64. Bf4 {[%clk
0:00:20.4]} 64... Bd8 {[%clk 0:00:06.1]} 65. Kd2 {[%clk 0:00:17.9]} 65... Bf6
{[%clk 0:00:06.8]} 66. Kc2 {[%clk 0:00:18.3]} 66... Kc4 {[%clk 0:00:07.5]} 67.
Bd2 {[%clk 0:00:18.8]} 67... Be5 {[%clk 0:00:08.2]} 68. Be1 {[%clk 0:00:18.7]}
68... e3 {[%clk 0:00:08.9]} 69. Kd1 {[%clk 0:00:17.5]} 69... Kd3 {[%clk
0:00:09.3]} 0-1

[Event "Late-Titled-Tuesday-Blitz-March-19-2024"]
[Site "Chess.com"]
[Date "2024.03.19"]
[Round "2"]
[White "Yaacovn"]
[Black "Malev212"]
[Result "0-1"]
[WhiteElo "2882"]
[BlackElo "2637"]
[TimeControl "180+1"]
[EndTime "14:19:23 PDT"]
[Termination "Malev212 won by checkmate"]

1. d4 {[%clk 0:03:00.9]} 1... g6 {[%clk 0:02:56.7]} 2. Nf3 {[%clk 0:03:00.1]}
2... Bg7 {[%clk 0:02:55.9]} 3. e3 {[%clk 0:03:00.5]} 3... d6 {[%clk 0:02:50.8]}
4. Bc4 {[%clk 0:03:00.1]} 4... Nf6 {[%clk 0:02:44.9]} 5. O-O {[%clk 0:03:00]}
5... O-O {[%clk 0:02:44.2]} 6. b3 {[%clk 0:03:00.5]} 6... Nc6 {[%clk 0:02:38.2]}
7. Bb2 {[%clk 0:03:00.3]} 7... Bg4 {[%clk 0:02:38]} 8. Be2 {[%clk 0:03:00]} 8...
e5 {[%clk 0:02:35.5]} 9. dxe5 {[%clk 0:02:58.3]} 9... Nd7 {[%clk 0:02:35.3]} 10.
c4 {[%clk 0:02:57.4]} 10... dxe5 {[%clk 0:02:33.2]} 11. h3 {[%clk 0:02:50.1]}
11... e4 {[%clk 0:02:06.9]} 12. Nd4 {[%clk 0:02:14.4]} 12... Bxe2 {[%clk
0:02:04.6]} 13. Qxe2 {[%clk 0:02:14.1]} 13... Nce5 {[%clk 0:01:58.4]} 14. Nd2
{[%clk 0:02:02.5]} 14... c5 {[%clk 0:01:43.9]} 15. Nb5 {[%clk 0:02:02.5]} 15...
f5 {[%clk 0:01:36.9]} 16. Rad1 {[%clk 0:01:58.6]} 16... a6 {[%clk 0:01:34.9]}
17. Nc3 {[%clk 0:01:47.2]} 17... Nd3 {[%clk 0:01:30.3]} 18. Ba1 {[%clk
0:01:47.6]} 18... b5 {[%clk 0:01:15.6]} 19. Ndxe4 {[%clk 0:01:40.2]} 19... fxe4
{[%clk 0:01:13.3]} 20. Nxe4 {[%clk 0:01:40.6]} 20... N3e5 {[%clk 0:01:01.5]} 21.
cxb5 {[%clk 0:01:18.8]} 21... Qe7 {[%clk 0:00:56.4]} 22. bxa6 {[%clk 0:01:16.4]}
22... c4 {[%clk 0:00:52.1]} 23. Nd6 {[%clk 0:01:03]} 23... Nf3+ {[%clk
0:00:35.5]} 24. gxf3 {[%clk 0:00:53.7]} 24... Bxa1 {[%clk 0:00:36.4]} 25. Qxc4+
{[%clk 0:00:50.4]} 25... Kh8 {[%clk 0:00:35.6]} 26. Rxa1 {[%clk 0:00:43.9]}
26... Qxd6 {[%clk 0:00:33.8]} 27. Rad1 {[%clk 0:00:42.3]} 27... Qe7 {[%clk
0:00:27.3]} 28. Qc7 {[%clk 0:00:40.1]} 28... Qg5+ {[%clk 0:00:26.8]} 29. Kh2
{[%clk 0:00:35.1]} 29... Ne5 {[%clk 0:00:25.8]} 30. f4 {[%clk 0:00:20.6]} 30...
Nf3+ {[%clk 0:00:22.8]} 31. Kh1 {[%clk 0:00:21]} 31... Qh5 {[%clk 0:00:21]} 32.
Qd7 {[%clk 0:00:17.8]} 32... Rad8 {[%clk 0:00:17.6]} 33. Qg4 {[%clk 0:00:16.4]}
33... Qxg4 {[%clk 0:00:14.4]} 34. hxg4 {[%clk 0:00:16.3]} 34... Nd2 {[%clk
0:00:15.2]} 35. Rfe1 {[%clk 0:00:14.6]} 35... Ne4 {[%clk 0:00:15]} 36. Kg2
{[%clk 0:00:14.2]} 36... Ra8 {[%clk 0:00:13.5]} 37. Rd4 {[%clk 0:00:12]} 37...
Nc3 {[%clk 0:00:13.2]} 38. a4 {[%clk 0:00:10.9]} 38... Rxa6 {[%clk 0:00:13.1]}
39. Rc1 {[%clk 0:00:11.6]} 39... Ne2 {[%clk 0:00:10.5]} 40. Rcd1 {[%clk
0:00:09.6]} 40... Nxd4 {[%clk 0:00:10.2]} 41. Rxd4 {[%clk 0:00:10.5]} 41... Rb8
{[%clk 0:00:09.6]} 42. Rd3 {[%clk 0:00:10.7]} 42... Rab6 {[%clk 0:00:09.8]} 43.
a5 {[%clk 0:00:11]} 43... Rxb3 {[%clk 0:00:09.6]} 44. Rd7 {[%clk 0:00:11.5]}
44... Ra3 {[%clk 0:00:09.5]} 45. Rd5 {[%clk 0:00:12]} 45... Ra8 {[%clk
0:00:09.3]} 46. g5 {[%clk 0:00:12.5]} 46... R3xa5 {[%clk 0:00:09.3]} 47. Rd7
{[%clk 0:00:13.1]} 47... R5a7 {[%clk 0:00:09.3]} 48. Rd6 {[%clk 0:00:13.5]}
48... Kg7 {[%clk 0:00:09.7]} 49. Kg3 {[%clk 0:00:13.1]} 49... Re8 {[%clk
0:00:09.4]} 50. Kf3 {[%clk 0:00:12.8]} 50... Ree7 {[%clk 0:00:09.6]} 51. Rd8
{[%clk 0:00:13.2]} 51... Ra2 {[%clk 0:00:08.7]} 52. Rd1 {[%clk 0:00:12.8]} 52...
Rb7 {[%clk 0:00:08.4]} 53. Kg3 {[%clk 0:00:11.3]} 53... Rbb2 {[%clk 0:00:07.9]}
54. Rf1 {[%clk 0:00:11.6]} 54... h5 {[%clk 0:00:07.8]} 55. gxh6+ {[%clk
0:00:11.8]} 55... Kxh6 {[%clk 0:00:08]} 56. Kf3 {[%clk 0:00:12.7]} 56... Kg7
{[%clk 0:00:08]} 57. Kg3 {[%clk 0:00:13]} 57... Kf6 {[%clk 0:00:08.5]} 58. Kf3
{[%clk 0:00:13.6]} 58... Kf5 {[%clk 0:00:08.8]} 59. e4+ {[%clk 0:00:12.5]} 59...
Kf6 {[%clk 0:00:08.5]} 60. Kg3 {[%clk 0:00:13.2]} 60... Rb3+ {[%clk 0:00:08.4]}
61. Kg4 {[%clk 0:00:12.4]} 61... Ra4 {[%clk 0:00:07.6]} 62. f3 {[%clk
0:00:12.3]} 62... Ra2 {[%clk 0:00:07.5]} 63. e5+ {[%clk 0:00:11.5]} 63... Ke6
{[%clk 0:00:06.8]} 64. Rd1 {[%clk 0:00:12.1]} 64... Rg2+ {[%clk 0:00:05.9]} 65.
Kh3 {[%clk 0:00:12.3]} 65... Rbb2 {[%clk 0:00:06.6]} 66. Rd6+ {[%clk 0:00:12.3]}
66... Kf7 {[%clk 0:00:06.9]} 67. Rf6+ {[%clk 0:00:11.9]} 67... Kg7 {[%clk
0:00:06.9]} 68. f5 {[%clk 0:00:11.6]} 68... g5 {[%clk 0:00:05.6]} 69. Rg6+
{[%clk 0:00:11]} 69... Kf7 {[%clk 0:00:05]} 70. e6+ {[%clk 0:00:11.5]} 70... Ke7
{[%clk 0:00:05.1]} 71. Rg7+ {[%clk 0:00:12]} 71... Kf6 {[%clk 0:00:04.4]} 72.
Rf7+ {[%clk 0:00:12.6]} 72... Ke5 {[%clk 0:00:04.9]} 73. e7 {[%clk 0:00:13.2]}
73... Rh2+ {[%clk 0:00:04.8]} 74. Kg4 {[%clk 0:00:13.5]} 74... Rbg2# {[%clk
0:00:05.1]} 0-1

[Event "Late-Titled-Tuesday-Blitz-March-19-2024"]
[Site "Chess.com"]
[Date "2024.03.19"]
[Round "2"]
[White "Kampkatten"]
[Black "mightysmasher"]
[Result "1-0"]
[WhiteElo "2845"]
[BlackElo "2598"]
[TimeControl "180+1"]
[EndTime "14:19:36 PDT"]
[Termination "Kampkatten won by checkmate"]

1. Nf3 {[%clk 0:03:00.9]} 1... d5 {[%clk 0:02:59.8]} 2. g3 {[%clk 0:03:01.1]}
2... Nf6 {[%clk 0:02:59.5]} 3. Bg2 {[%clk 0:03:01.4]} 3... e6 {[%clk 0:03:00.1]}
4. O-O {[%clk 0:03:01.3]} 4... Be7 {[%clk 0:03:00.7]} 5. c4 {[%clk 0:03:01.7]}
5... O-O {[%clk 0:03:01.2]} 6. d4 {[%clk 0:03:02]} 6... c6 {[%clk 0:03:00.8]} 7.
Qc2 {[%clk 0:03:00.5]} 7... b6 {[%clk 0:03:01.2]} 8. Rd1 {[%clk 0:03:00.8]} 8...
Bb7 {[%clk 0:03:01.5]} 9. b3 {[%clk 0:02:58.9]} 9... Na6 {[%clk 0:03:01.7]} 10.
Nc3 {[%clk 0:02:57.3]} 10... Rc8 {[%clk 0:03:01.2]} 11. e4 {[%clk 0:02:56.9]}
11... dxe4 {[%clk 0:02:39]} 12. Nxe4 {[%clk 0:02:56.1]} 12... Nxe4 {[%clk
0:02:38.9]} 13. Qxe4 {[%clk 0:02:57]} 13... Bf6 {[%clk 0:02:34.3]} 14. Bf4
{[%clk 0:02:47.7]} 14... Qe7 {[%clk 0:02:32.5]} 15. Ne5 {[%clk 0:02:42.3]} 15...
Rfd8 {[%clk 0:02:30.2]} 16. h4 {[%clk 0:02:39.8]} 16... Nc7 {[%clk 0:02:01.8]}
17. Ng4 {[%clk 0:02:28.3]} 17... Ne8 {[%clk 0:01:56.1]} 18. Nxf6+ {[%clk
0:02:20.3]} 18... Nxf6 {[%clk 0:01:53.3]} 19. Qf3 {[%clk 0:02:21]} 19... Ba8
{[%clk 0:01:52.6]} 20. Qe2 {[%clk 0:02:15.2]} 20... c5 {[%clk 0:01:45.5]} 21. d5
{[%clk 0:02:15]} 21... Qb7 {[%clk 0:01:42.2]} 22. Bg5 {[%clk 0:02:12.4]} 22...
Re8 {[%clk 0:01:20.2]} 23. Bxf6 {[%clk 0:02:06]} 23... gxf6 {[%clk 0:01:19.6]}
24. Qg4+ {[%clk 0:02:03.3]} 24... Kh8 {[%clk 0:01:18.8]} 25. Qf4 {[%clk
0:01:59.5]} 25... Kg7 {[%clk 0:01:16]} 26. Rd3 {[%clk 0:01:51.2]} 26... Rcd8
{[%clk 0:01:09.9]} 27. Rad1 {[%clk 0:01:48.7]} 27... a6 {[%clk 0:00:50.6]} 28.
Rf3 {[%clk 0:01:33.3]} 28... f5 {[%clk 0:00:41.3]} 29. Qg5+ {[%clk 0:01:24.5]}
29... Kh8 {[%clk 0:00:38.8]} 30. Qf6+ {[%clk 0:01:22.8]} 30... Kg8 {[%clk
0:00:38.5]} 31. g4 {[%clk 0:01:16.8]} 31... Qe7 {[%clk 0:00:34.6]} 32. Qxe7
{[%clk 0:01:07.2]} 32... Rxe7 {[%clk 0:00:34.3]} 33. gxf5 {[%clk 0:01:07.9]}
33... exd5 {[%clk 0:00:33.9]} 34. cxd5 {[%clk 0:01:03.2]} 34... Re5 {[%clk
0:00:31.1]} 35. f6 {[%clk 0:00:44]} 35... Kf8 {[%clk 0:00:21.9]} 36. Rg3 {[%clk
0:00:35.1]} 36... Rf5 {[%clk 0:00:20.7]} 37. Rg7 {[%clk 0:00:33.7]} 37... Rxf6
{[%clk 0:00:20.5]} 38. Rxh7 {[%clk 0:00:34.2]} 38... Kg8 {[%clk 0:00:17]} 39.
Rh5 {[%clk 0:00:34.6]} 39... Rg6 {[%clk 0:00:17]} 40. Kh2 {[%clk 0:00:33.9]}
40... Kf8 {[%clk 0:00:15.9]} 41. Re5 {[%clk 0:00:32.9]} 41... Rg4 {[%clk
0:00:12.9]} 42. Kh3 {[%clk 0:00:30.4]} 42... Rg6 {[%clk 0:00:11.5]} 43. h5
{[%clk 0:00:30.3]} 43... Rgd6 {[%clk 0:00:11.4]} 44. f4 {[%clk 0:00:28.6]} 44...
Kg7 {[%clk 0:00:11.4]} 45. Rg5+ {[%clk 0:00:28.1]} 45... Kh6 {[%clk 0:00:11.3]}
46. Kg4 {[%clk 0:00:27.2]} 46... Bb7 {[%clk 0:00:09.4]} 47. Be4 {[%clk
0:00:25.8]} 47... Bc8+ {[%clk 0:00:09.4]} 48. Kf3 {[%clk 0:00:24.2]} 48... Bb7
{[%clk 0:00:08.6]} 49. Rf5 {[%clk 0:00:18.1]} 49... R8d7 {[%clk 0:00:07.3]} 50.
Rd2 {[%clk 0:00:16.6]} 50... b5 {[%clk 0:00:07.1]} 51. Rc2 {[%clk 0:00:16.2]}
51... Bxd5 {[%clk 0:00:07.2]} 52. Bxd5 {[%clk 0:00:15.3]} 52... Rxd5 {[%clk
0:00:07.3]} 53. Rxc5 {[%clk 0:00:16.1]} 53... Rd3+ {[%clk 0:00:06.5]} 54. Kg4
{[%clk 0:00:15.8]} 54... Rd1 {[%clk 0:00:05.7]} 55. Rf6+ {[%clk 0:00:16.1]}
55... Kh7 {[%clk 0:00:05.9]} 56. Rxa6 {[%clk 0:00:13.5]} 56... Rg1+ {[%clk
0:00:05.9]} 57. Kf5 {[%clk 0:00:13.7]} 57... Rgd1 {[%clk 0:00:04.2]} 58. Kf6
{[%clk 0:00:11.8]} 58... Rf1 {[%clk 0:00:04.1]} 59. f5 {[%clk 0:00:11.7]} 59...
Rfd1 {[%clk 0:00:04.2]} 60. Rxb5 {[%clk 0:00:11.7]} 60... Rh1 {[%clk 0:00:02.7]}
61. Kg5 {[%clk 0:00:10.1]} 61... Rg1+ {[%clk 0:00:02.6]} 62. Kf4 {[%clk
0:00:10.5]} 62... Rd4+ {[%clk 0:00:02.6]} 63. Ke5 {[%clk 0:00:10.4]} 63... Rd7
{[%clk 0:00:03.5]} 64. Rab6 {[%clk 0:00:09.3]} 64... Re1+ {[%clk 0:00:03.7]} 65.
Kf6 {[%clk 0:00:09.5]} 65... Rh1 {[%clk 0:00:02.9]} 66. Rb7 {[%clk 0:00:09.9]}
66... Rd6+ {[%clk 0:00:02.8]} 67. Kxf7 {[%clk 0:00:10.3]} 67... Rxh5 {[%clk
0:00:03.3]} 68. Ke7 {[%clk 0:00:10.4]} 68... Rd1 {[%clk 0:00:02.2]} 69. f6
{[%clk 0:00:10.9]} 69... Rxb5 {[%clk 0:00:01.9]} 70. Rxb5 {[%clk 0:00:11.8]}
70... Re1+ {[%clk 0:00:02.1]} 71. Kf7 {[%clk 0:00:12.3]} 71... Rh1 {[%clk
0:00:01.6]} 72. Re5 {[%clk 0:00:12.2]} 72... Rh6 {[%clk 0:00:02.5]} 73. Ke7
{[%clk 0:00:12.2]} 73... Rxf6 {[%clk 0:00:03.4]} 74. Kxf6 {[%clk 0:00:12.3]}
74... Kg8 {[%clk 0:00:04.3]} 75. Rh5 {[%clk 0:00:11.8]} 75... Kf8 {[%clk
0:00:04.4]} 76. Rh8# {[%clk 0:00:12.2]} 1-0

[Event "Late-Titled-Tuesday-Blitz-March-19-2024"]
[Site "Chess.com"]
[Date "2024.03.19"]
[Round "2"]
[White "simaopdias"]
[Black "Real_taiatai"]
[Result "1-0"]
[WhiteElo "2285"]
[BlackElo "2505"]
[TimeControl "180+1"]
[EndTime "14:19:36 PDT"]
[Termination "simaopdias won by checkmate"]

1. e3 {[%clk 0:03:00.1]} 1... d6 {[%clk 0:03:00.9]} 2. Nf3 {[%clk 0:03:00.2]}
2... g6 {[%clk 0:03:01.3]} 3. d4 {[%clk 0:03:00.6]} 3... Bg7 {[%clk 0:03:02.2]}
4. Bd3 {[%clk 0:03:00.5]} 4... Nd7 {[%clk 0:03:02.3]} 5. O-O {[%clk 0:03:00.9]}
5... e5 {[%clk 0:03:02.7]} 6. Re1 {[%clk 0:03:00.8]} 6... Ngf6 {[%clk
0:03:02.5]} 7. Nbd2 {[%clk 0:02:59.7]} 7... O-O {[%clk 0:03:02.3]} 8. c3 {[%clk
0:02:59.7]} 8... Re8 {[%clk 0:03:02.7]} 9. e4 {[%clk 0:02:59.2]} 9... c6 {[%clk
0:03:00.6]} 10. h3 {[%clk 0:02:57.8]} 10... Qc7 {[%clk 0:03:00.5]} 11. Qc2
{[%clk 0:02:57.2]} 11... a6 {[%clk 0:02:49.4]} 12. a4 {[%clk 0:02:57.2]} 12...
b6 {[%clk 0:02:49.2]} 13. Nc4 {[%clk 0:02:45.6]} 13... Bb7 {[%clk 0:02:48.1]}
14. dxe5 {[%clk 0:02:42.9]} 14... Nxe5 {[%clk 0:02:37.4]} 15. Ncxe5 {[%clk
0:02:36]} 15... dxe5 {[%clk 0:02:36.7]} 16. Be3 {[%clk 0:02:33.5]} 16... Rad8
{[%clk 0:02:28.8]} 17. Rad1 {[%clk 0:02:33.3]} 17... c5 {[%clk 0:02:26.7]} 18.
Bg5 {[%clk 0:02:24.9]} 18... h6 {[%clk 0:02:25.3]} 19. Bh4 {[%clk 0:02:24.8]}
19... g5 {[%clk 0:02:22.1]} 20. Bg3 {[%clk 0:02:24.2]} 20... Nh5 {[%clk
0:02:22.1]} 21. Bh2 {[%clk 0:02:22.1]} 21... Nf4 {[%clk 0:02:19.4]} 22. Bc4
{[%clk 0:02:21.3]} 22... Rxd1 {[%clk 0:02:14.6]} 23. Rxd1 {[%clk 0:02:21.1]}
23... Rd8 {[%clk 0:02:14.9]} 24. Kf1 {[%clk 0:02:17.4]} 24... Rxd1+ {[%clk
0:02:06.8]} 25. Qxd1 {[%clk 0:02:18.3]} 25... Bxe4 {[%clk 0:02:06.9]} 26. Bxf4
{[%clk 0:02:18.1]} 26... exf4 {[%clk 0:02:06.6]} 27. Bxa6 {[%clk 0:02:14]} 27...
c4 {[%clk 0:02:01.3]} 28. Nd2 {[%clk 0:02:08.9]} 28... Bd3+ {[%clk 0:02:01.3]}
29. Kg1 {[%clk 0:02:08.2]} 29... f5 {[%clk 0:01:38.5]} 30. Qf3 {[%clk
0:02:03.6]} 30... Kf7 {[%clk 0:01:36.7]} 31. Qd5+ {[%clk 0:02:02.8]} 31... Kg6
{[%clk 0:01:36.4]} 32. Nxc4 {[%clk 0:01:55.7]} 32... Bxc4 {[%clk 0:01:32.4]} 33.
Bxc4 {[%clk 0:01:55.3]} 33... Qe7 {[%clk 0:01:19.9]} 34. Kh2 {[%clk 0:01:48.6]}
34... g4 {[%clk 0:01:17]} 35. hxg4 {[%clk 0:01:43.5]} 35... Qh4+ {[%clk
0:01:10.3]} 36. Kg1 {[%clk 0:01:43.7]} 36... Qxg4 {[%clk 0:01:11.1]} 37. Qf7+
{[%clk 0:01:41.3]} 37... Kh7 {[%clk 0:01:11.1]} 38. Be6 {[%clk 0:01:38.1]} 38...
Qd1+ {[%clk 0:01:09]} 39. Kh2 {[%clk 0:01:38.5]} 39... Qd8 {[%clk 0:01:03.4]}
40. Bxf5+ {[%clk 0:01:35.4]} 40... Kh8 {[%clk 0:01:04]} 41. Qg6 {[%clk
0:01:34.3]} 41... Kg8 {[%clk 0:01:04.2]} 42. Qh7+ {[%clk 0:01:31.5]} 42... Kf8
{[%clk 0:01:04.5]} 43. Qg6 {[%clk 0:01:29.7]} 43... Kg8 {[%clk 0:01:04.4]} 44.
Qe6+ {[%clk 0:01:13.4]} 44... Kh8 {[%clk 0:01:03.4]} 45. Kh3 {[%clk 0:00:59.4]}
45... Bf8 {[%clk 0:00:48.7]} 46. Qe5+ {[%clk 0:00:54.8]} 46... Bg7 {[%clk
0:00:47.8]} 47. Qxf4 {[%clk 0:00:54.1]} 47... Qe8 {[%clk 0:00:43.3]} 48. Qe4
{[%clk 0:00:50.9]} 48... Qh5+ {[%clk 0:00:42.7]} 49. Kg3 {[%clk 0:00:50]} 49...
Qg5+ {[%clk 0:00:42.1]} 50. Kf3 {[%clk 0:00:49]} 50... Qh5+ {[%clk 0:00:41.9]}
51. g4 {[%clk 0:00:46.5]} 51... Qh1+ {[%clk 0:00:41.5]} 52. Ke2 {[%clk
0:00:46.4]} 52... Qxe4+ {[%clk 0:00:32.9]} 53. Bxe4 {[%clk 0:00:46.3]} 53... Kg8
{[%clk 0:00:33.6]} 54. Kd3 {[%clk 0:00:46.1]} 54... Kf8 {[%clk 0:00:34.2]} 55.
b4 {[%clk 0:00:46.2]} 55... Ke7 {[%clk 0:00:34.7]} 56. c4 {[%clk 0:00:46.6]}
56... Kd7 {[%clk 0:00:33.1]} 57. f4 {[%clk 0:00:46.3]} 57... Bf8 {[%clk
0:00:32.4]} 58. Bf5+ {[%clk 0:00:43.3]} 58... Kc6 {[%clk 0:00:31.4]} 59. Be4+
{[%clk 0:00:42.8]} 59... Kc7 {[%clk 0:00:31.4]} 60. Kc3 {[%clk 0:00:43]} 60...
Bd6 {[%clk 0:00:30.6]} 61. f5 {[%clk 0:00:42]} 61... Be5+ {[%clk 0:00:31.3]} 62.
Kb3 {[%clk 0:00:42.1]} 62... Bd6 {[%clk 0:00:32.2]} 63. Bd5 {[%clk 0:00:40.8]}
63... Be5 {[%clk 0:00:31.9]} 64. c5 {[%clk 0:00:39.9]} 64... bxc5 {[%clk
0:00:31.5]} 65. bxc5 {[%clk 0:00:40.8]} 65... Bf6 {[%clk 0:00:31.3]} 66. Kc4
{[%clk 0:00:41.2]} 66... Bb2 {[%clk 0:00:30.9]} 67. Kb5 {[%clk 0:00:41.2]} 67...
Bf6 {[%clk 0:00:30.3]} 68. Bf3 {[%clk 0:00:41.2]} 68... Be7 {[%clk 0:00:30]} 69.
a5 {[%clk 0:00:40.8]} 69... Kb8 {[%clk 0:00:29.7]} 70. Kc6 {[%clk 0:00:40.6]}
70... Kc8 {[%clk 0:00:25.6]} 71. Be2 {[%clk 0:00:40.1]} 71... Kb8 {[%clk
0:00:19.8]} 72. Ba6 {[%clk 0:00:38.2]} 72... Ka7 {[%clk 0:00:19.3]} 73. Bb7
{[%clk 0:00:38.2]} 73... Bd8 {[%clk 0:00:18.7]} 74. a6 {[%clk 0:00:38]} 74...
Kb8 {[%clk 0:00:18.2]} 75. Kd7 {[%clk 0:00:37.2]} 75... Bg5 {[%clk 0:00:18.1]}
76. c6 {[%clk 0:00:37.1]} 76... Bf4 {[%clk 0:00:17.9]} 77. f6 {[%clk 0:00:37.3]}
77... Ka7 {[%clk 0:00:16.9]} 78. f7 {[%clk 0:00:36]} 78... Bc7 {[%clk
0:00:17.8]} 79. f8=Q {[%clk 0:00:34.9]} 79... Bd8 {[%clk 0:00:18.3]} 80. Qc5+
{[%clk 0:00:34.5]} 80... Bb6 {[%clk 0:00:18.2]} 81. Qxb6+ {[%clk 0:00:33.6]}
81... Kxb6 {[%clk 0:00:18.4]} 82. c7 {[%clk 0:00:34.5]} 82... Ka7 {[%clk
0:00:18.9]} 83. c8=Q {[%clk 0:00:33.6]} 83... h5 {[%clk 0:00:19.8]} 84. Qc5+
{[%clk 0:00:33.5]} 84... Kb8 {[%clk 0:00:18.9]} 85. Kc6 {[%clk 0:00:32.1]} 85...
hxg4 {[%clk 0:00:18.7]} 86. Kb6 {[%clk 0:00:30.7]} 86... g3 {[%clk 0:00:18.6]}
87. Qc7# {[%clk 0:00:30.8]} 1-0